Cogmind - Beta 15 *** ADVENTURER MODE // 2025.06.15 @ 21:32:36 Player: sbr Result: Destroyed by Q5-FUQ(R) with Subdweller Machine Gun Performance ------------- Evolutions (0) 0 Regions Visited (2) 400 Robots Destroyed (4) 20 Value Destroyed (127) 127 Prototype IDs (0) 0 Alien Tech Used (0) 0 Bonus (0) 0 TOTAL SCORE: 547 Bonus ------- None Cogmind --------- Core Integrity 0/250 Matter 262/300 Energy 125/125 System Corruption 0% Temperature Cool (0) Movement Core (150) Ox2 Location -10/Subcaves Parts ------- > --- POWER (1) -------- Light Ion Engine > --- PROPULSION (2) --- (None) > --- UTILITY (2) ------ Subdweller Optics > --- WEAPON (2) ------- Subdweller Machine Gun > --- INVENTORY (5) ---- Small Laser Subdweller Laser Mining Laser Peak State ------------ > --- POWER ------------ Light Ion Engine > --- PROPULSION ------- Aluminum Leg Aluminum Leg > --- UTILITY ---------- Subdweller Optics > --- WEAPON ----------- Subdweller Machine Gun Datajack > --- INVENTORY -------- Small Laser Mining Laser [Rating: 8] Favorites ----------- Power Light Ion Engine Engine Light Ion Engine Propulsion Aluminum Leg Leg Aluminum Leg Utility Subdweller Optics Device Subdweller Optics Weapon Small Laser Energy Gun Small Laser Ballistic Gun Subdweller Machine Gun Special Weapon Mining Laser Special Melee Weapon Datajack Build | -11 -10 -10 ------- Run | Yrd Mat Sub Slots Evolved . | . . . Power . | . . . Propulsion . | . . . Utility . | . . . Weapon . | . . . Parts Attached 11 | 5 . 6 Power 2 | 1 . 1 Engine 2 | 1 . 1 Core . | . . . Reactor . | . . . Propulsion 3 | 2 . 1 Treads . | . . . Leg 3 | 2 . 1 Wheel . | . . . Hover . | . . . Flight . | . . . Utility 1 | . . 1 Device 1 | . . 1 Storage . | . . . Processor . | . . . Hackware . | . . . Protection . | . . . Artifact . | . . . Weapon 5 | 2 . 3 Energy Gun 2 | 2 . . Energy Cannon . | . . . Ballistic Gun 1 | . . 1 Ballistic Cannon . | . . . Launcher . | . . . Special Weapon 1 | . . 1 Impact Weapon . | . . . Slashing Weapon . | . . . Piercing Weapon . | . . . Special Melee Weapon 1 | . . 1 Unidentified Prototypes . | . . . Parts Lost 6 | . . 6 Power 1 | . . 1 Propulsion 3 | . . 3 Utility . | . . . Weapon 2 | . . 2 Highest Loss Streak 3 | . . 3 To Critical Strikes . | . . . Average Backups 1 | . 1 1 Power . | . . . Propulsion . | . . . Utility . | . . . Weapon 1 | . 1 1 Tool/Special . | . . . Unused Backups . | . . . Power . | . . . Propulsion . | . . . Utility . | . . . Weapon . | . . . Tool/Special . | . . . Average Slot Usage (%) 72 | . 71 72 Engine 13 | . 14 13 Leg 23 | . 28 23 Device 8 | . . 9 Energy Gun 11 | . 28 8 Ballistic Gun 5 | . . 6 Special Weapon 2 | . . 3 Special Melee Weapon 6 | . . 7 Peak Build Rating 8 | 5 5 8 Average Rating 5 | 4 5 6 On Entrance 3 | . 5 5 Naked Turns . | . . . Heaviest Build 10 | 5 5 10 Greatest Support 20 | 20 20 20 Greatest Overweight (x) 2 | . . 2 Average Overweight (x) . | . . . Largest Inventory Capacity 5 | 5 5 5 Average Capacity 5 | 5 5 5 Most Carried 3 | 1 1 3 Average Carried 1 | . 1 1 Final Capacity 5 | 5 5 5 Final Carried 3 | 1 1 3 Class Distribution -------------------- 100% | Mutant Dominant Class ---------------- Mutant | -10/Materials Mutant | -10/Subcaves Resources | -11 -10 -10 ----------- Run | Yrd Mat Sub Matter Collected 278 | 143 . 135 Remotely . | . . . Salvage Created 127 | 13 . 114 Parts 7 | 2 . 5 Haulers Intercepted . | . . . Recyclers Shooed . | . . . Parts Field Recycled . | . . . Retrieved Matter . | . . . Parts Self-Destructed 4 | . . 4 Prevented . | . . . Kills | -11 -10 -10 ------- Run | Yrd Mat Sub Combat Hostiles Destroyed 3 | . . 3 Guns 3 | . . 3 Classes Destroyed 2 | 1 . 1 Tunneler 1 | 1 . . Subdweller 3 | . . 3 Best Kill Streak 1 | 1 . 1 Combat Bots Only 1 | . . 1 Max Kills in Single Turn 1 | 1 . 1 Gunslinging . | . . . Exploded . | . . . Melee . | . . . Uniques/NPCs Destroyed . | . . . Combat | -11 -10 -10 -------- Run | Yrd Mat Sub Hostile Shots Fired 67 | . . 67 Missed 20 | . . 20 Hits 47 | . . 47 Projectile 47 | . . 47 Damage Taken 752 | . . 752 Core 256 | . . 256 Absorbed by Shields . | . . . Ignored by Resistances 208 | . . 208 Core Remaining (%) 100 | 100 . . Volleys Fired 40 | 2 . 38 Largest 2 | 2 . 2 Hottest 100 | 80 . 100 Shots Fired 55 | 4 . 51 Gun 45 | 4 . 41 Cannon . | . . . Launcher . | . . . Special 10 | . . 10 Kinetic 8 | . . 8 Thermal 47 | 4 . 43 Explosive . | . . . Electromagnetic . | . . . Robot Hit Streak 11 | 2 . 11 Robot Miss Streak 2 | 1 . 2 Penetration Max . | . . . Secondary Targets 1 | . . 1 Max Gunslinging Chain 1 | . . 1 Shots Hit Robots 40 | 2 . 38 Core Hits 8 | 1 . 7 Critical Kills . | . . . Critical Parts Destroyed 1 | . . 1 Critical Strikes 1 | . . 1 Destroy 1 | . . 1 Melee Attacks 3 | . . 3 Impact . | . . . Slashing . | . . . Piercing . | . . . Sneak Attacks . | . . . Combat Hostiles . | . . . Follow-up Attacks . | . . . Damage Inflicted 406 | 24 . 382 Guns 406 | 24 . 382 Cannons . | . . . Explosions . | . . . Melee . | . . . Ramming . | . . . Kinetic 156 | . . 156 Thermal 250 | 24 . 226 Explosive . | . . . Electromagnetic . | . . . Impact . | . . . Slashing . | . . . Piercing . | . . . Highest Corruption . | . . . Average Corruption . | . . . Corruption Purged . | . . . Corruption Blocked . | . . . Overload Shots . | . . . Overflow Damage . | . . . Projectiles . | . . . Explosions . | . . . Melee . | . . . Knockbacks . | . . . Impact . | . . . Kinetic . | . . . Secondary . | . . . Self-Inflicted Damage . | . . . Shots . | . . . Rammed . | . . . Targets Rammed . | . . . Kicked . | . . . Crushed . | . . . Highest Temperature 36 | 36 . . Average Temperature 20 | 20 . . Received Heat Transfer 66 | . . 66 Siege Activations . | . . . Martial Activations . | . . . Shielding Activations . | . . . Robots Disrupted . | . . . Combat Hostiles . | . . . Robots Corrupted . | . . . Combat Hostiles . | . . . Parts Fried . | . . . Impact Corruptions . | . . . Robots Melted . | . . . Combat Hostiles . | . . . Parts Melted . | . . . Heat Transferred 575 | 50 . 525 Parts Sabotaged . | . . . Parts Stolen . | . . . Parts Stripped . | . . . Power Chain Reactions . | . . . Alert | -11 -10 -10 ------- Run | Yrd Mat Sub Maximum Alert Level . | . . . Low Security (%) 100 | 100 100 . Level 1 . | . . . Level 2 . | . . . Level 3 . | . . . Level 4 . | . . . Level 5 . | . . . High Security . | . . . Max Security . | . . . Peak Influence 5 | 5 3 . Initial . | . . . Average . | . . . Influence Increases 8 | 5 3 . Destroy 0b10 Robot/NC 5 | 5 . . Successful Hack 3 | . 3 . Influence Decreases 8 | 5 3 . Time Decay 8 | 5 3 . Squads Dispatched . | . . . Investigation . | . . . Extermination . | . . . Reinforcement . | . . . Assault . | . . . Garrison . | . . . Intercept . | . . . Searches Triggered . | . . . Construction Impeded . | . . . Haulers Reinforced . | . . . Active Scanning Responses . | . . . Cargo Convoy Interrupts . | . . . Stealth | -11 -10 -10 --------- Run | Yrd Mat Sub Distress Signals . | . . . Communications Jammed . | . . . Distress Signals . | . . . Times Spotted 4 | . . 4 Peak Tracking Total 2 | . . 2 Tactical Retreats . | . . . Traps | -11 -10 -10 ------- Run | Yrd Mat Sub Traps Triggered . | . . . Indirectly . | . . . Trap Hack Attempts . | . . . Triggered . | . . . Disarmed . | . . . Reprogrammed . | . . . Reused . | . . . Traps Extracted . | . . . Installed . | . . . Triggered . | . . . Machines | -11 -10 -10 ---------- Run | Yrd Mat Sub Machines Disabled . | . . . Max in Single Turn . | . . . Machines Repaired . | . . . Machines Dismantled . | . . . Machines Sabotaged . | . . . Overloaded Fab Kills . | . . . Hacking | -11 -10 -10 --------- Run | Yrd Mat Sub Machines Accessed 1 | . 1 . Terminals 1 | . 1 . Fabricators . | . . . Repair Stations . | . . . Recycling Units . | . . . Scanalyzers . | . . . Garrison Access . | . . . Total Hacks 2 | . 2 . Successful 2 | . 2 . Failed . | . . . Catastrophic . | . . . Database Lockouts . | . . . Manual 1 | . 1 . Terminals 2 | . 2 . Fabricators . | . . . Repair Stations . | . . . Recycling Units . | . . . Scanalyzers . | . . . Garrison Access . | . . . Terminal Hacks 2 | . 2 . Record 1 | . 1 . Locate Traps 1 | . 1 . Fabricator Hacks . | . . . Repair Station Hacks . | . . . Recycling Unit Hacks . | . . . Scanalyzer . | . . . Garrison Access Hacks . | . . . Unauthorized Hacks . | . . . Terminals . | . . . Fabricators . | . . . Repair Stations . | . . . Recycling Units . | . . . Scanalyzers . | . . . Garrison Access . | . . . Data Cores Recovered . | . . . Used . | . . . Hacking Detections 1 | . 1 . Full Trace Events 1 | . 1 . Feedback Events . | . . . Feedback Blocked . | . . . Robot Schematics Acquired . | . . . Robots Built . | . . . Authchips . | . . . Time . | . . . Total Robot Build Rating . | . . . Part Schematics Acquired . | . . . Parts Built . | . . . Authchips . | . . . Time . | . . . Total Part Build Rating . | . . . Parts Repaired . | . . . Time . | . . . Parts Recycled . | . . . Recycled Matter . | . . . Retrieved Matter . | . . . Retrieved Components . | . . . Parts Scanalyzed . | . . . Part Schematics Acquired . | . . . Parts Damaged . | . . . Bothacking | -11 -10 -10 ------------ Run | Yrd Mat Sub Used RIF Installer . | . . . Robots Hacked 1 | . . 1 Non-combat . | . . . Combat 1 | . . 1 Robot Hacks Applied 2 | . . 2 parse_system 2 | . . 2 Relay Couplers Released . | . . . Fabnet Peak Effective % . | . . . Robots Rewired . | . . . Allies Hacked . | . . . Hacks Repelled . | . . . Allies | -11 -10 -10 -------- Run | Yrd Mat Sub Total Allies . | . . . Largest Group . | . . . Highest-Rated Group . | . . . Highest-Rated Ally . | . . . Total Orders . | . . . Ally Attacks . | . . . Total Damage . | . . . Kills . | . . . Allies Corrupted . | . . . Allies Melted . | . . . Intel | -11 -10 -10 ------- Run | Yrd Mat Sub Active Infowar (turns) 385 | . . 385 Optics 385 | . . 385 Robot Analysis Total . | . . . Derelict Logs Recovered . | . . . Drone Launches . | . . . Drone Recoveries . | . . . Exploration | -11 -10 -10 ------------- Run | Yrd Mat Sub Turns Passed 753 | 111 82 560 Spaces Moved 504 | 89 64 351 Core 40 | 13 . 27 Treads . | . . . Legs 464 | 76 64 324 Wheels . | . . . Hover . | . . . Flight . | . . . Fastest Speed 50 | 50 120 120 Average Speed 119 | 109 120 122 Slowest Speed 150 | 120 120 150 Overloaded Moves . | . . . Propulsion Burnouts . | . . . Robots Hopped . | . . . Potential Cave-ins . | . . . Cave-ins Triggered . | . . . Exploration Rate (%) 8 | 4 10 10 Regions Visited 2 Branch Regions 1 Pre-discovered Areas . | . . . Known Exits Taken . | . . . Unknown Exits Taken 2 | 1 1 . Scrap Searched . | . . . Spaces Dug . | . . . Terrain Destroyed . | . . . Melee . | . . . Projectile . | . . . AOE . | . . . Terrain Rammed . | . . . Walls Destroyed . | . . . Machines Disabled . | . . . Actions | -11 -10 -10 --------- Run | Yrd Mat Sub Total 571 | 96 69 406 Wait 8 | . 6 2 Move 502 | 88 63 351 Hop . | . . . Pick Up 3 | 1 . 2 Fast Attach 9 | 5 . 4 Attach 1 | . . 1 Detach 1 | . . 1 Swap 3 | . . 3 Drop 1 | . . 1 Fire 40 | 2 . 38 Melee 3 | . . 3 Ram . | . . . Kick . | . . . Crush . | . . . Escape Stasis . | . . . Rewire . | . . . Trap . | . . . Miscellaneous . | . . . Route ------- -11/Scrapyard -10/Materials -10/Subcaves History --------- Turn | Location | Event 2 | -11/Scrapyard | Met Revision 17 11 | -11/Scrapyard | Discovered new exit (range 15) 112 | -11/Scrapyard | Entered Materials 113 | -10/Materials | Met a group of wandering Federalists 184 | -10/Materials | Discovered new exit (range 9) 194 | -10/Materials | Entered Subcaves 194 | -10/Subcaves | Accompanied by 1 ally 195 | -10/Subcaves | Continued accompanying wandering Federalists (2) 195 | -10/Subcaves | Approached by a straggling Scientist 322 | -10/Subcaves | Build established: Mutant 324 | -10/Subcaves | Core integrity fell below 50% 382 | -10/Subcaves | Lost 3 parts (1p1n1w) 672 | -10/Subcaves | A swath of the cavern ceiling suddenly collapsed 711 | -10/Subcaves | Core integrity fell below 20% 737 | -10/Subcaves | Lost 3 parts (2n1w) 754 | -10/Subcaves | Destroyed by Q5-FUQ(R) with Subdweller Machine Gun Last Messages --------------- A swath of the cavern ceiling suddenly collapses. 00693_ Jacked H6-I7H(R)... >>parse_system Reading system data... 00695_ Aluminum Leg destroyed. 00695_ Jacked H6-I7H(R)... 00695_ Command string: hack 00695_ No effect. 00697_ Jacked H6-I7H(R)... >>parse_system Reading system data... 00702_ Aluminum Leg destroyed. 00704_ H6-I7H(R) suffers critical hit (Destroy). 00704_ Destroyed Sub. Optics. 00706_ Datajack destroyed. 00710_ H6-I7H(R) destroyed. 00714_ Acquired 35 matter. 00720_ Acquired Sub. Laser. 00745_ Q5-FUQ(R) affixes Scrap Shield Fragment to Scrap Shield. Map ----- +----------------------------------------------------+ | ?????????????????????????????????????????????????? | | ?????????????????????????????????????????????????? | | ?????????????????????????????????????????????????? | | ?????????????????????????????????????????????????? | | ?????????????????????????????????????????????????? | | ?????????????????????????????????????????????????? | | ??####????????????##?????????????????????????????? | | ###""#???????????## ?????????????????????????????? | | ##" "#??#####???###" ????????????????????????????? | | ##??# #???# ""#????????????????????????????? | | " ##???## ##???# #!###?????????????????????????? | | ""##????# ##???# #%"# ##???????????????????????? | | ""#?????## ##??? # #"# #???????????????????????? | | ""##????# #???? "" ##???????????????????????? | | " #?###### ##????? " ##??????????????????????? | | #### ## #?????? !# ##?????????????????????? | | ## ##??????? %# ##????????????????????? | | *]& # #?????????##; #????????????????????? | | " ## #???#####?#; #????????????????????? | | ###" # ##??# ### R #????????????????????? | | ###?#"& # #??## ##????????????????????? | | #???# & ! ##???## #?????????????????????? | | #???## ####??## #?????????????????????? | | ##????## ###?## #?????????????????????? | | #?????## #?## #?????????????????????? | | #?????# ### @##?????????????????????? | | ???#### ## ## ##?????????????????????? | | #??# ######### ### ##????????????????????? | | ##?# #???#### ### #????????????????????? | | ### ##### ## #????????????????????? | | ## ## #????????????????????? | | ### #????????????????????? | | ### #?# #????????????????????? | | #?#### #? #????????????????????? | | ##### #????## ### ##????????????????????? | | ????## #?????####?# #?????????????????????? | | ?????## ##?????????? #?????????????????????? | | ??????###?????????? ?????????????????????? | | ##????????????????? #????????????????????? | | #???????????????? ##????????????????????? | | #???????????????? #### #?????????????????????? | | #??????????????? ???# ?????????????????????? | | ##?????????????? #???# ?????????????????????? | | ##???????????? ????# ##????????????????????? | | #???????????? ?????## ##?????????????????????? | | #???????????????????###??????????????????????? | | #????????????????????????????????????????????? | | ## #????????????????????????????????????????????? | | ??# ???????????????????????????????????????????? | | ??? ?????????????????????????????????????????? | +----------------------------------------------------+ Best States ------------- Heat Dissipation 25 Energy Generation 10 Energy Capacity 250 Matter Stores 262 Matter Capacity 300 Sight Range 21 Terrain Scan Density 10 Resistance: KI 20 Resistance: TH 20 Resistance: EX 20 Resistance: EM 20 Resistance: I 20 Resistance: S 20 Resistance: P 20 Evasion (%) 55 Offensive Hacking 10 Item Schematics ----------------- None Robot Schematics ------------------ None Fabricated ------------ Nothing Repaired ---------- Nothing Alien Tech Used ----------------- None Achievements -------------- None Challenges ------------ None Game ------ Seed SuspensionModifiedTrident Manual? 0 Play Time 00:09:59 Cumulative 12.5 hours Start 2025.06.15 @ 21:22:30 End 2025.06.15 @ 21:32:36 Sessions 1 Manual Loads 0 Difficulty Adventurer Special Mode None Game No. 13 Rogue 0 Adventurer 9 Explorer 4 Win Type - Total 0 Types 0/0/0/0/0/0/0/0/0/0 Lore% 10 Gallery% 15 Achievement% 16 Wizard Run 0 Options --------- Layout 1 ASCII 0 Keyboard 0 Movement Arrows Keybinds 0 Fullscreen 1 Font 36/Smallcaps Map View 54x44 Zoom Use 0% Tactical HUD 1 Map Filters NONE Filters NONE Steam 1 RUN: 48da222b-8980-4591-8e24-bf468d3577e5